{"text_format":"3","workbook":"xlsx","n_sheets":5,"sheets":["Visão Geral da Festa","Lista de Convidados","Comes e Bebes","Outros Itens Essenciais","Organização de Assentos"],"not_rendered":{"defined_names":9},"read":"whole","date_system":"1900"}

{"sheet":"Visão Geral da Festa","index":0,"n_rows":21,"n_cols":8,"rows_kept":21,"merged":[[6,3,6,4],[6,5,6,6],[9,1,9,2]]}
[]
[]
[null,"Visão Geral da Festa"]
[]
[]
[null,"EVENTO",null,"RESUMO DOS CONVIDADOS",{"$nulls":3},{"$f":"\"OUTSTANDING RSVPS: \"&OutstandingRSVPs","v":"OUTSTANDING RSVPS: 2"}]
[null,"75º Aniversário da Vovó",null,"RSVP - VISÃO GERAL",null,"CUSTOS POR CONVIDADO",null,"VALOR DO ORÇAMENTO"]
[{"$nulls":3},"Convidados Confirmados","Total Confirmado","Alimentos","Outros","Total"]
[null,"DATA",null,"Adultos",{"$f":"SUMIF(GuestTable[Comparecerá?],\"=Sim\",GuestTable[ADULTOS])","v":26},{"$f":"FoodTable[[#Totals],[CUSTO POR ADULTO]]","v":{"v":12.690089084110037,"d":"R$ 12.69"}},{"$f":"EssentialCostPerGuest","v":{"v":18.695652173913043,"d":"R$ 18.70"}},{"$f":"(AttendeeSummary[[#This Row],[Alimentos]]+AttendeeSummary[[#This Row],[Outros]])*AdultTotal","v":{"v":816.0292727086002,"d":"R$ 816.03"}}]
[null,"2011-06-14",null,"Crianças",{"$f":"SUMIF(GuestTable[Comparecerá?],\"=Sim\",GuestTable[CRIANÇAS])","v":20},{"$f":"FoodTable[[#Totals],[CUSTO POR CRIANÇA]]","v":{"v":7.252884190656953,"d":"R$ 7.25"}},{"$f":"EssentialCostPerGuest","v":{"v":18.695652173913043,"d":"R$ 18.70"}},{"$f":"(AttendeeSummary[[#This Row],[Alimentos]]+AttendeeSummary[[#This Row],[Outros]])*ChildrenTotal","v":{"v":518.9707272914,"d":"R$ 518.97"}}]
[{"$nulls":3},"Total",{"$f":"SUBTOTAL(109,AttendeeSummary[Total Confirmado])","v":46},{"$f":"\"Méd.     \"&TEXT(SUBTOTAL(101,AttendeeSummary[Alimentos]),\"R$ #.##0,00\")","v":"Méd.     R$ 9,97"},{"$f":"\"Méd.     \"&TEXT(SUBTOTAL(101,AttendeeSummary[Outros]),\"R$ #.##0,00\")","v":"Méd.     R$ 18,70"},{"$f":"SUBTOTAL(109,AttendeeSummary[Total])","v":{"v":1335,"d":"R$ 1,335.00"}}]
[null,"HORA"]
[null,"14:00 às 16:00"]
[]
[null,"LOCAL",null,"RESUMO DO ORÇAMENTO"]
[null,"Casa da Tia Kim",null,"ITEM","CONTAGEM","VALOR DO ORÇAMENTO","CUSTO TOTAL","DIFERENÇA"]
[{"$nulls":3},"Comes e Bebes",{"$f":"COUNTA(FoodTable[ITEM DE COMES E BEBES])","v":18},{"v":500,"d":"R$ 500.00"},{"$f":"FoodTable[[#Totals],[CUSTO TOTAL]]","v":{"v":475,"d":"R$ 475.00"}},{"$f":"BudgetOverview[[#This Row],[VALOR DO ORÇAMENTO]]-BudgetOverview[[#This Row],[CUSTO TOTAL]]","v":{"v":25,"d":"R$ 25.00"}}]
[{"$nulls":3},{"$f":"Table1Header","v":"Equipamentos e Suprimentos"},{"$f":"COUNTA(Table1Budget[Equipamentos e Suprimentos])","v":7},{"v":400,"d":"R$ 400.00"},{"$f":"Table1Budget[[#Totals],[Custo]]","v":{"v":400,"d":"R$ 400.00"}},{"$f":"BudgetOverview[[#This Row],[VALOR DO ORÇAMENTO]]-BudgetOverview[[#This Row],[CUSTO TOTAL]]","v":{"v":0,"d":"R$ 0.00"}}]
[{"$nulls":3},{"$f":"Table2Header","v":"Decorações"},{"$f":"COUNTA(Table2Budget[Decorações])","v":4},{"v":150,"d":"R$ 150.00"},{"$f":"Table2Budget[[#Totals],[Custo]]","v":{"v":175,"d":"R$ 175.00"}},{"$f":"BudgetOverview[[#This Row],[VALOR DO ORÇAMENTO]]-BudgetOverview[[#This Row],[CUSTO TOTAL]]","v":{"v":-25,"d":"-R$ 25.00"}}]
[{"$nulls":3},{"$f":"Table3Header","v":"Outros"},{"$f":"COUNTA(Table3Budget[Outros])","v":4},{"v":300,"d":"R$ 300.00"},{"$f":"Table3Budget[[#Totals],[Custo]]","v":{"v":285,"d":"R$ 285.00"}},{"$f":"BudgetOverview[[#This Row],[VALOR DO ORÇAMENTO]]-BudgetOverview[[#This Row],[CUSTO TOTAL]]","v":{"v":15,"d":"R$ 15.00"}}]
[{"$nulls":3},"Total",{"$f":"SUBTOTAL(109,BudgetOverview[CONTAGEM])","v":33},{"$f":"SUBTOTAL(109,BudgetOverview[VALOR DO ORÇAMENTO])","v":{"v":1350,"d":"R$ 1,350.00"}},{"$f":"SUBTOTAL(109,BudgetOverview[CUSTO TOTAL])","v":{"v":1335,"d":"R$ 1,335.00"}},{"$f":"BudgetOverview[[#Totals],[VALOR DO ORÇAMENTO]]-BudgetOverview[[#Totals],[CUSTO TOTAL]]","v":{"v":15,"d":"R$ 15.00"}}]

{"sheet":"Lista de Convidados","index":1,"n_rows":22,"n_cols":12,"rows_kept":22}
[]
[]
[null,"Lista de Convidados"]
[]
[]
[]
[null,"NOME","ENDEREÇO","CIDADE","ESTADO","CEP","TELEFONE","EMAIL","Comparecerá?","CRIANÇAS","ADULTOS","TOTAL"]
[null,"Família 1","Endereço 1","Cidade 1","Estado 1","CEP 1","Telefone 1","Email1","Não",2,2,{"$f":"SUM(GuestTable[[#This Row],[CRIANÇAS]:[ADULTOS]])","v":4}]
[null,"Família 2","Endereço 2","Cidade 2","Estado 2","CEP 2","Telefone 2","Email2","Sim",1,1,{"$f":"SUM(GuestTable[[#This Row],[CRIANÇAS]:[ADULTOS]])","v":2}]
[null,"Família 3","Endereço 3","Cidade 3","Estado 3","CEP 3","Telefone 3","Email3","Sim",3,3,{"$f":"SUM(GuestTable[[#This Row],[CRIANÇAS]:[ADULTOS]])","v":6}]
[null,"Família 4","Endereço 4","Cidade 4","Estado 4","CEP 4","Telefone 4","Email4",null,null,2,{"$f":"SUM(GuestTable[[#This Row],[CRIANÇAS]:[ADULTOS]])","v":2}]
[null,"Família 5","Endereço 5","Cidade 5","Estado 5","CEP 5","Telefone 5","Email5","Sim",4,3,{"$f":"SUM(GuestTable[[#This Row],[CRIANÇAS]:[ADULTOS]])","v":7}]
[null,"Família 6","Endereço 6","Cidade 6","Estado 6","CEP 6","Telefone 6","Email6","Sim",2,2,{"$f":"SUM(GuestTable[[#This Row],[CRIANÇAS]:[ADULTOS]])","v":4}]
[null,"Família 7","Endereço 7","Cidade 7","Estado 7","CEP 7","Telefone 7","Email7","Sim",1,4,{"$f":"SUM(GuestTable[[#This Row],[CRIANÇAS]:[ADULTOS]])","v":5}]
[null,"Família 8","Endereço 8","Cidade 8","Estado 8","CEP 8","Telefone 8","Email8","Não",5,3,{"$f":"SUM(GuestTable[[#This Row],[CRIANÇAS]:[ADULTOS]])","v":8}]
[null,"Família 9","Endereço 9","Cidade 9","Estado 9","CEP 9","Telefone 9","Email9","Sim",3,2,{"$f":"SUM(GuestTable[[#This Row],[CRIANÇAS]:[ADULTOS]])","v":5}]
[null,"Família 10","Endereço 10","Cidade 10","Estado 10","CEP 10","Telefone 10","Email10","Sim",null,4,{"$f":"SUM(GuestTable[[#This Row],[CRIANÇAS]:[ADULTOS]])","v":4}]
[null,"Família 11","Endereço 11","Cidade 11","Estado 11","CEP 11","Telefone 11","Email11","Sim",3,5,{"$f":"SUM(GuestTable[[#This Row],[CRIANÇAS]:[ADULTOS]])","v":8}]
[null,"Família 12","Endereço 12","Cidade 12","Estado 12","CEP 12","Telefone 12","Email12","Não",2,3,{"$f":"SUM(GuestTable[[#This Row],[CRIANÇAS]:[ADULTOS]])","v":5}]
[null,"Família 13","Endereço 13","Cidade 13","Estado 13","CEP 13","Telefone 13","Email13","Sim",3,2,{"$f":"SUM(GuestTable[[#This Row],[CRIANÇAS]:[ADULTOS]])","v":5}]
[null,"Família 14","Endereço 14","Cidade 14","Estado 14","CEP 14","Telefone 14","Email14","Não",null,1,{"$f":"SUM(GuestTable[[#This Row],[CRIANÇAS]:[ADULTOS]])","v":1}]
[null,"Família 15","Endereço 15","Cidade 15","Estado 15","CEP 15","Telefone 15","Email15",null,null,2,{"$f":"SUM(GuestTable[[#This Row],[CRIANÇAS]:[ADULTOS]])","v":2}]

{"sheet":"Comes e Bebes","index":2,"n_rows":25,"n_cols":10,"rows_kept":25}
[]
[]
[null,"Comes e Bebes"]
[]
[null,"Insira o custo e as porções estimadas para calcular automaticamente o total de unidades e o custo por porção com base no atendimento total"]
[null,"ITEM DE COMES E BEBES","CUSTO TOTAL","PORÇÃO POR CRIANÇA","PORÇÃO POR ADULTO","TOTAL DE PORÇÕES","CUSTO POR PORÇÃO","CUSTO POR CRIANÇA","CUSTO POR ADULTO","OBSERVAÇÕES"]
[null,"Refrigerante",{"v":15,"d":"R$ 15.00"},0.5,2,{"$f":"(FoodTable[[#This Row],[PORÇÃO POR CRIANÇA]]*ChildrenTotal)+(FoodTable[[#This Row],[PORÇÃO POR ADULTO]]*AdultTotal)","v":62},{"$f":"IFERROR(FoodTable[[#This Row],[CUSTO TOTAL]]/FoodTable[[#This Row],[TOTAL DE PORÇÕES]],\"\")","v":{"v":0.24193548387096775,"d":"$0.24"}},{"$f":"IFERROR(FoodTable[[#This Row],[CUSTO POR PORÇÃO]]*FoodTable[[#This Row],[PORÇÃO POR CRIANÇA]],\"\")","v":{"v":0.12096774193548387,"d":"R$ 0.12"}},{"$f":"IFERROR(FoodTable[[#This Row],[CUSTO POR PORÇÃO]]*FoodTable[[#This Row],[PORÇÃO POR ADULTO]],\"\")","v":{"v":0.4838709677419355,"d":"R$ 0.48"}},"Garrafas de 2 litros"]
[null,"Suco de caixinha",{"v":15,"d":"R$ 15.00"},2,0,{"$f":"(FoodTable[[#This Row],[PORÇÃO POR CRIANÇA]]*ChildrenTotal)+(FoodTable[[#This Row],[PORÇÃO POR ADULTO]]*AdultTotal)","v":40},{"$f":"IFERROR(FoodTable[[#This Row],[CUSTO TOTAL]]/FoodTable[[#This Row],[TOTAL DE PORÇÕES]],\"\")","v":{"v":0.375,"d":"R$ 0.38"}},{"$f":"IFERROR(FoodTable[[#This Row],[CUSTO POR PORÇÃO]]*FoodTable[[#This Row],[PORÇÃO POR CRIANÇA]],\"\")","v":{"v":0.75,"d":"R$ 0.75"}},{"$f":"IFERROR(FoodTable[[#This Row],[CUSTO POR PORÇÃO]]*FoodTable[[#This Row],[PORÇÃO POR ADULTO]],\"\")","v":{"v":0,"d":"R$ 0.00"}},"Maçã e uva"]
[null,"Vinho",{"v":50,"d":"R$ 50.00"},0,2,{"$f":"(FoodTable[[#This Row],[PORÇÃO POR CRIANÇA]]*ChildrenTotal)+(FoodTable[[#This Row],[PORÇÃO POR ADULTO]]*AdultTotal)","v":52},{"$f":"IFERROR(FoodTable[[#This Row],[CUSTO TOTAL]]/FoodTable[[#This Row],[TOTAL DE PORÇÕES]],\"\")","v":{"v":0.9615384615384616,"d":"R$ 0.96"}},{"$f":"IFERROR(FoodTable[[#This Row],[CUSTO POR PORÇÃO]]*FoodTable[[#This Row],[PORÇÃO POR CRIANÇA]],\"\")","v":{"v":0,"d":"R$ 0.00"}},{"$f":"IFERROR(FoodTable[[#This Row],[CUSTO POR PORÇÃO]]*FoodTable[[#This Row],[PORÇÃO POR ADULTO]],\"\")","v":{"v":1.9230769230769231,"d":"R$ 1.92"}}]
[null,"Bolo",{"v":75,"d":"R$ 75.00"},1,1,{"$f":"(FoodTable[[#This Row],[PORÇÃO POR CRIANÇA]]*ChildrenTotal)+(FoodTable[[#This Row],[PORÇÃO POR ADULTO]]*AdultTotal)","v":46},{"$f":"IFERROR(FoodTable[[#This Row],[CUSTO TOTAL]]/FoodTable[[#This Row],[TOTAL DE PORÇÕES]],\"\")","v":{"v":1.6304347826086956,"d":"R$ 1.63"}},{"$f":"IFERROR(FoodTable[[#This Row],[CUSTO POR PORÇÃO]]*FoodTable[[#This Row],[PORÇÃO POR CRIANÇA]],\"\")","v":{"v":1.6304347826086956,"d":"R$ 1.63"}},{"$f":"IFERROR(FoodTable[[#This Row],[CUSTO POR PORÇÃO]]*FoodTable[[#This Row],[PORÇÃO POR ADULTO]],\"\")","v":{"v":1.6304347826086956,"d":"R$ 1.63"}},"Encomendar na padaria local"]
[null,"Sorvete",{"v":20,"d":"R$ 20.00"},1,1.5,{"$f":"(FoodTable[[#This Row],[PORÇÃO POR CRIANÇA]]*ChildrenTotal)+(FoodTable[[#This Row],[PORÇÃO POR ADULTO]]*AdultTotal)","v":59},{"$f":"IFERROR(FoodTable[[#This Row],[CUSTO TOTAL]]/FoodTable[[#This Row],[TOTAL DE PORÇÕES]],\"\")","v":{"v":0.3389830508474576,"d":"R$ 0.34"}},{"$f":"IFERROR(FoodTable[[#This Row],[CUSTO POR PORÇÃO]]*FoodTable[[#This Row],[PORÇÃO POR CRIANÇA]],\"\")","v":{"v":0.3389830508474576,"d":"R$ 0.34"}},{"$f":"IFERROR(FoodTable[[#This Row],[CUSTO POR PORÇÃO]]*FoodTable[[#This Row],[PORÇÃO POR ADULTO]],\"\")","v":{"v":0.5084745762711864,"d":"R$ 0.51"}}]
[null,"Brigadeiro de colher",{"v":15,"d":"R$ 15.00"},1,0,{"$f":"(FoodTable[[#This Row],[PORÇÃO POR CRIANÇA]]*ChildrenTotal)+(FoodTable[[#This Row],[PORÇÃO POR ADULTO]]*AdultTotal)","v":20},{"$f":"IFERROR(FoodTable[[#This Row],[CUSTO TOTAL]]/FoodTable[[#This Row],[TOTAL DE PORÇÕES]],\"\")","v":{"v":0.75,"d":"R$ 0.75"}},{"$f":"IFERROR(FoodTable[[#This Row],[CUSTO POR PORÇÃO]]*FoodTable[[#This Row],[PORÇÃO POR CRIANÇA]],\"\")","v":{"v":0.75,"d":"R$ 0.75"}},{"$f":"IFERROR(FoodTable[[#This Row],[CUSTO POR PORÇÃO]]*FoodTable[[#This Row],[PORÇÃO POR ADULTO]],\"\")","v":{"v":0,"d":"R$ 0.00"}},"Encomendar na doceira"]
[null,"Cogumelos recheados",{"v":32,"d":"R$ 32.00"},1,2,{"$f":"(FoodTable[[#This Row],[PORÇÃO POR CRIANÇA]]*ChildrenTotal)+(FoodTable[[#This Row],[PORÇÃO POR ADULTO]]*AdultTotal)","v":72},{"$f":"IFERROR(FoodTable[[#This Row],[CUSTO TOTAL]]/FoodTable[[#This Row],[TOTAL DE PORÇÕES]],\"\")","v":{"v":0.4444444444444444,"d":"R$ 0.44"}},{"$f":"IFERROR(FoodTable[[#This Row],[CUSTO POR PORÇÃO]]*FoodTable[[#This Row],[PORÇÃO POR CRIANÇA]],\"\")","v":{"v":0.4444444444444444,"d":"R$ 0.44"}},{"$f":"IFERROR(FoodTable[[#This Row],[CUSTO POR PORÇÃO]]*FoodTable[[#This Row],[PORÇÃO POR ADULTO]],\"\")","v":{"v":0.8888888888888888,"d":"R$ 0.89"}},"Cogumelos de Paris recheados com cream cheese e carne seca"]
[null,"Bruschetta",{"v":22,"d":"R$ 22.00"},0,3,{"$f":"(FoodTable[[#This Row],[PORÇÃO POR CRIANÇA]]*ChildrenTotal)+(FoodTable[[#This Row],[PORÇÃO POR ADULTO]]*AdultTotal)","v":78},{"$f":"IFERROR(FoodTable[[#This Row],[CUSTO TOTAL]]/FoodTable[[#This Row],[TOTAL DE PORÇÕES]],\"\")","v":{"v":0.28205128205128205,"d":"R$ 0.28"}},{"$f":"IFERROR(FoodTable[[#This Row],[CUSTO POR PORÇÃO]]*FoodTable[[#This Row],[PORÇÃO POR CRIANÇA]],\"\")","v":{"v":0,"d":"R$ 0.00"}},{"$f":"IFERROR(FoodTable[[#This Row],[CUSTO POR PORÇÃO]]*FoodTable[[#This Row],[PORÇÃO POR ADULTO]],\"\")","v":{"v":0.8461538461538461,"d":"R$ 0.85"}},"Tomate e manjericão"]
[null,"Salmão defumado",{"v":50,"d":"R$ 50.00"},1,2,{"$f":"(FoodTable[[#This Row],[PORÇÃO POR CRIANÇA]]*ChildrenTotal)+(FoodTable[[#This Row],[PORÇÃO POR ADULTO]]*AdultTotal)","v":72},{"$f":"IFERROR(FoodTable[[#This Row],[CUSTO TOTAL]]/FoodTable[[#This Row],[TOTAL DE PORÇÕES]],\"\")","v":{"v":0.6944444444444444,"d":"R$ 0.69"}},{"$f":"IFERROR(FoodTable[[#This Row],[CUSTO POR PORÇÃO]]*FoodTable[[#This Row],[PORÇÃO POR CRIANÇA]],\"\")","v":{"v":0.6944444444444444,"d":"R$ 0.69"}},{"$f":"IFERROR(FoodTable[[#This Row],[CUSTO POR PORÇÃO]]*FoodTable[[#This Row],[PORÇÃO POR ADULTO]],\"\")","v":{"v":1.3888888888888888,"d":"R$ 1.39"}}]
[null,"Pãezinhos",{"v":20,"d":"R$ 20.00"},1,2,{"$f":"(FoodTable[[#This Row],[PORÇÃO POR CRIANÇA]]*ChildrenTotal)+(FoodTable[[#This Row],[PORÇÃO POR ADULTO]]*AdultTotal)","v":72},{"$f":"IFERROR(FoodTable[[#This Row],[CUSTO TOTAL]]/FoodTable[[#This Row],[TOTAL DE PORÇÕES]],\"\")","v":{"v":0.2777777777777778,"d":"R$ 0.28"}},{"$f":"IFERROR(FoodTable[[#This Row],[CUSTO POR PORÇÃO]]*FoodTable[[#This Row],[PORÇÃO POR CRIANÇA]],\"\")","v":{"v":0.2777777777777778,"d":"R$ 0.28"}},{"$f":"IFERROR(FoodTable[[#This Row],[CUSTO POR PORÇÃO]]*FoodTable[[#This Row],[PORÇÃO POR ADULTO]],\"\")","v":{"v":0.5555555555555556,"d":"R$ 0.56"}},"4 pacotes - sortidos"]
[null,"Cream cheese",{"v":10,"d":"R$ 10.00"},1,2,{"$f":"(FoodTable[[#This Row],[PORÇÃO POR CRIANÇA]]*ChildrenTotal)+(FoodTable[[#This Row],[PORÇÃO POR ADULTO]]*AdultTotal)","v":72},{"$f":"IFERROR(FoodTable[[#This Row],[CUSTO TOTAL]]/FoodTable[[#This Row],[TOTAL DE PORÇÕES]],\"\")","v":{"v":0.1388888888888889,"d":"R$ 0.14"}},{"$f":"IFERROR(FoodTable[[#This Row],[CUSTO POR PORÇÃO]]*FoodTable[[#This Row],[PORÇÃO POR CRIANÇA]],\"\")","v":{"v":0.1388888888888889,"d":"R$ 0.14"}},{"$f":"IFERROR(FoodTable[[#This Row],[CUSTO POR PORÇÃO]]*FoodTable[[#This Row],[PORÇÃO POR ADULTO]],\"\")","v":{"v":0.2777777777777778,"d":"R$ 0.28"}},"2 potes grandes"]
[null,"Alcaparras",{"v":12,"d":"R$ 12.00"},1,2,{"$f":"(FoodTable[[#This Row],[PORÇÃO POR CRIANÇA]]*ChildrenTotal)+(FoodTable[[#This Row],[PORÇÃO POR ADULTO]]*AdultTotal)","v":72},{"$f":"IFERROR(FoodTable[[#This Row],[CUSTO TOTAL]]/FoodTable[[#This Row],[TOTAL DE PORÇÕES]],\"\")","v":{"v":0.16666666666666666,"d":"R$ 0.17"}},{"$f":"IFERROR(FoodTable[[#This Row],[CUSTO POR PORÇÃO]]*FoodTable[[#This Row],[PORÇÃO POR CRIANÇA]],\"\")","v":{"v":0.16666666666666666,"d":"R$ 0.17"}},{"$f":"IFERROR(FoodTable[[#This Row],[CUSTO POR PORÇÃO]]*FoodTable[[#This Row],[PORÇÃO POR ADULTO]],\"\")","v":{"v":0.3333333333333333,"d":"R$ 0.33"}},"3 vidros"]
[null,"Coxinhas",{"v":45,"d":"R$ 45.00"},2,4,{"$f":"(FoodTable[[#This Row],[PORÇÃO POR CRIANÇA]]*ChildrenTotal)+(FoodTable[[#This Row],[PORÇÃO POR ADULTO]]*AdultTotal)","v":144},{"$f":"IFERROR(FoodTable[[#This Row],[CUSTO TOTAL]]/FoodTable[[#This Row],[TOTAL DE PORÇÕES]],\"\")","v":{"v":0.3125,"d":"R$ 0.31"}},{"$f":"IFERROR(FoodTable[[#This Row],[CUSTO POR PORÇÃO]]*FoodTable[[#This Row],[PORÇÃO POR CRIANÇA]],\"\")","v":{"v":0.625,"d":"R$ 0.63"}},{"$f":"IFERROR(FoodTable[[#This Row],[CUSTO POR PORÇÃO]]*FoodTable[[#This Row],[PORÇÃO POR ADULTO]],\"\")","v":{"v":1.25,"d":"R$ 1.25"}},"Comprar na rotisserie local"]
[null,"Hummus",{"v":10,"d":"R$ 10.00"},4,6,{"$f":"(FoodTable[[#This Row],[PORÇÃO POR CRIANÇA]]*ChildrenTotal)+(FoodTable[[#This Row],[PORÇÃO POR ADULTO]]*AdultTotal)","v":236},{"$f":"IFERROR(FoodTable[[#This Row],[CUSTO TOTAL]]/FoodTable[[#This Row],[TOTAL DE PORÇÕES]],\"\")","v":{"v":0.0423728813559322,"d":"R$ 0.04"}},{"$f":"IFERROR(FoodTable[[#This Row],[CUSTO POR PORÇÃO]]*FoodTable[[#This Row],[PORÇÃO POR CRIANÇA]],\"\")","v":{"v":0.1694915254237288,"d":"R$ 0.17"}},{"$f":"IFERROR(FoodTable[[#This Row],[CUSTO POR PORÇÃO]]*FoodTable[[#This Row],[PORÇÃO POR ADULTO]],\"\")","v":{"v":0.2542372881355932,"d":"R$ 0.25"}},"Preparar na noite anterior"]
[null,"Pão pita crocante com parmesão",{"v":14,"d":"R$ 14.00"},4,6,{"$f":"(FoodTable[[#This Row],[PORÇÃO POR CRIANÇA]]*ChildrenTotal)+(FoodTable[[#This Row],[PORÇÃO POR ADULTO]]*AdultTotal)","v":236},{"$f":"IFERROR(FoodTable[[#This Row],[CUSTO TOTAL]]/FoodTable[[#This Row],[TOTAL DE PORÇÕES]],\"\")","v":{"v":0.059322033898305086,"d":"R$ 0.06"}},{"$f":"IFERROR(FoodTable[[#This Row],[CUSTO POR PORÇÃO]]*FoodTable[[#This Row],[PORÇÃO POR CRIANÇA]],\"\")","v":{"v":0.23728813559322035,"d":"R$ 0.24"}},{"$f":"IFERROR(FoodTable[[#This Row],[CUSTO POR PORÇÃO]]*FoodTable[[#This Row],[PORÇÃO POR ADULTO]],\"\")","v":{"v":0.3559322033898305,"d":"R$ 0.36"}},"Preparar na noite anterior"]
[null,"Vegetais variados",{"v":30,"d":"R$ 30.00"},4,10,{"$f":"(FoodTable[[#This Row],[PORÇÃO POR CRIANÇA]]*ChildrenTotal)+(FoodTable[[#This Row],[PORÇÃO POR ADULTO]]*AdultTotal)","v":340},{"$f":"IFERROR(FoodTable[[#This Row],[CUSTO TOTAL]]/FoodTable[[#This Row],[TOTAL DE PORÇÕES]],\"\")","v":{"v":0.08823529411764706,"d":"R$ 0.09"}},{"$f":"IFERROR(FoodTable[[#This Row],[CUSTO POR PORÇÃO]]*FoodTable[[#This Row],[PORÇÃO POR CRIANÇA]],\"\")","v":{"v":0.35294117647058826,"d":"R$ 0.35"}},{"$f":"IFERROR(FoodTable[[#This Row],[CUSTO POR PORÇÃO]]*FoodTable[[#This Row],[PORÇÃO POR ADULTO]],\"\")","v":{"v":0.8823529411764707,"d":"R$ 0.88"}},"Palitos de cenoura, salsão, brócolis, couve-flor, pimentão verde e vermelho"]
[null,"Salgadinhos",{"v":15,"d":"R$ 15.00"},5,10,{"$f":"(FoodTable[[#This Row],[PORÇÃO POR CRIANÇA]]*ChildrenTotal)+(FoodTable[[#This Row],[PORÇÃO POR ADULTO]]*AdultTotal)","v":360},{"$f":"IFERROR(FoodTable[[#This Row],[CUSTO TOTAL]]/FoodTable[[#This Row],[TOTAL DE PORÇÕES]],\"\")","v":{"v":0.041666666666666664,"d":"R$ 0.04"}},{"$f":"IFERROR(FoodTable[[#This Row],[CUSTO POR PORÇÃO]]*FoodTable[[#This Row],[PORÇÃO POR CRIANÇA]],\"\")","v":{"v":0.20833333333333331,"d":"R$ 0.21"}},{"$f":"IFERROR(FoodTable[[#This Row],[CUSTO POR PORÇÃO]]*FoodTable[[#This Row],[PORÇÃO POR ADULTO]],\"\")","v":{"v":0.41666666666666663,"d":"R$ 0.42"}},"Sortidos: bolinhas de queijo e quibes"]
[null,"Torradas",{"v":25,"d":"R$ 25.00"},5,10,{"$f":"(FoodTable[[#This Row],[PORÇÃO POR CRIANÇA]]*ChildrenTotal)+(FoodTable[[#This Row],[PORÇÃO POR ADULTO]]*AdultTotal)","v":360},{"$f":"IFERROR(FoodTable[[#This Row],[CUSTO TOTAL]]/FoodTable[[#This Row],[TOTAL DE PORÇÕES]],\"\")","v":{"v":0.06944444444444445,"d":"R$ 0.07"}},{"$f":"IFERROR(FoodTable[[#This Row],[CUSTO POR PORÇÃO]]*FoodTable[[#This Row],[PORÇÃO POR CRIANÇA]],\"\")","v":{"v":0.3472222222222222,"d":"R$ 0.35"}},{"$f":"IFERROR(FoodTable[[#This Row],[CUSTO POR PORÇÃO]]*FoodTable[[#This Row],[PORÇÃO POR ADULTO]],\"\")","v":{"v":0.6944444444444444,"d":"R$ 0.69"}},"Com patês variados"]
[null,"Total",{"$f":"SUBTOTAL(109,FoodTable[CUSTO TOTAL])","v":{"v":475,"d":"R$ 475.00"}},{"$f":"SUBTOTAL(109,FoodTable[PORÇÃO POR CRIANÇA])","v":34.5},{"$f":"SUBTOTAL(109,FoodTable[PORÇÃO POR ADULTO])","v":65.5},{"$f":"SUBTOTAL(109,FoodTable[TOTAL DE PORÇÕES])","v":2393},{"$f":"SUBTOTAL(109,FoodTable[CUSTO POR PORÇÃO])","v":{"v":6.915706603622084,"d":"R$ 6.92"}},{"$f":"SUBTOTAL(109,FoodTable[CUSTO POR CRIANÇA])","v":{"v":7.252884190656953,"d":"R$ 7.25"}},{"$f":"SUBTOTAL(109,FoodTable[CUSTO POR ADULTO])","v":{"v":12.690089084110037,"d":"R$ 12.69"}}]

{"sheet":"Outros Itens Essenciais","index":3,"n_rows":30,"n_cols":5,"rows_kept":30,"merged":[[14,1,14,4],[22,1,22,4]]}
[]
[]
[null,"Outros Itens Essenciais"]
[]
[]
[null,"Equipamentos e Suprimentos","Custo","Comprado","Observações"]
[null,"Aluguel do salão",{"v":250,"d":"R$ 250.00"},"Sim"]
[null,"Toalhas de mesa",{"v":30,"d":"R$ 30.00"},"Sim","Aluguel"]
[null,"Mesas e cadeiras",{"v":0,"d":"R$ 0.00"},null,"Incluído no aluguel do salão"]
[null,"Guardanapos para bebidas",{"v":25,"d":"R$ 25.00"}]
[null,"Guardanapos para o jantar",{"v":20,"d":"R$ 20.00"},null,"Aluguel"]
[null,"Serviço de mesa",{"v":50,"d":"R$ 50.00"},null,"Aluguel"]
[null,"Copos",{"v":25,"d":"R$ 25.00"},null,"Aluguel"]
[null,"Total",{"$f":"SUBTOTAL(109,Table1Budget[Custo])","v":{"v":400,"d":"R$ 400.00"}}]
[]
[]
[null,"Decorações","Custo","Comprado","Observações"]
[null,"Balões",{"v":25,"d":"R$ 25.00"}]
[null,"Tanque de hélio",{"v":50,"d":"R$ 50.00"},null,"Aluguel"]
[null,"Centros de mesa",{"v":100,"d":"R$ 100.00"},"Sim","10 no total"]
[null,"Vasos de vidro",{"v":0,"d":"R$ 0.00"},null,"Emprestados de Sandy"]
[null,"Total",{"$f":"SUBTOTAL(109,Table2Budget[Custo])","v":{"v":175,"d":"R$ 175.00"}}]
[]
[]
[null,"Outros","Custo","Comprado","Observações"]
[null,"Convites",{"v":50,"d":"R$ 50.00"},"Sim"]
[null,"Postagem",{"v":60,"d":"R$ 60.00"},"Sim"]
[null,"Fotógrafo",{"v":125,"d":"R$ 125.00"},null,"2 horas (14:00 - 16:00)"]
[null,"Lembrancinhas",{"v":50,"d":"R$ 50.00"}]
[null,"Total",{"$f":"SUBTOTAL(109,Table3Budget[Custo])","v":{"v":285,"d":"R$ 285.00"}}]

{"sheet":"Organização de Assentos","index":4,"n_rows":43,"n_cols":34,"rows_kept":43,"merged":[[35,0,35,17],[35,19,35,33]]}
["Organização de Mesas"]
{"$rows_empty":33}
[{"$nulls":33},"*1 quadrado = aproximadamente 930 centímetros quadrados"]
["Observações",{"$nulls":18},{"$f":"\" Total de convidados confirmados: \"&ConfirmedGuests","v":" Total de convidados confirmados: 46"}]
[{"$nulls":19},"Você pode usar qualquer um dos arranjos de mesas:"]
[{"$nulls":20},{"$f":"ROUNDUP(ConfirmedGuests/6,0)&\" mesas redondas 137 cm (6 assentos)\"","v":"8 mesas redondas 137 cm (6 assentos)"}]
[{"$nulls":20},{"$f":"ROUNDUP(ConfirmedGuests/8,0) &\" mesas redondas 152 cm (8 assentos)\"","v":"6 mesas redondas 152 cm (8 assentos)"}]
[{"$nulls":20},{"$f":"ROUNDUP(ConfirmedGuests/10,0)&\"mesas redondas 182 cm (10 assentos)\"","v":"5mesas redondas 182 cm (10 assentos)"}]
[{"$nulls":20},{"$f":"ROUNDUP(ConfirmedGuests/6,0)& \" mesas quadradas 76 cm x 182 (6 assentos)\"","v":"8 mesas quadradas 76 cm x 182 (6 assentos)"}]
[{"$nulls":20},{"$f":"ROUNDUP(ConfirmedGuests/8,0)&\" mesas quadradas 76 cm x 246 (8 assentos)\"","v":"6 mesas quadradas 76 cm x 246 (8 assentos)"}]
[{"$nulls":19},"(Espaço preferido entre as mesas: 1 metro)"]